bitfinex-derivatives/quotes_SOLF0:USTF0_20241212
["timestamp","ask_amount","ask_price","bid_price","bid_amount"]
[1734036415188,10.06151576,229.15,229.05,5.32132175]
[1734036415389,10.06151576,229.15,229.05,7.50362175]
[1734036415984,2.1819,229.1,229.05,7.50362175]
[1734036416789,2.182,229.09,229.05,7.50362175]
[1734036417089,10.06151576,229.15,229.05,5.32132175]
[1734036417684,10.06151576,229.15,229.05,7.50362175]
[1734036417882,10.06151576,229.15,229.05,5.32132175]
[1734036418394,10.06151576,229.15,229.06,4.21636668]
[1734036418590,10.06151576,229.15,229.05,11.28770045]
[1734036418790,2.1817,229.12,229.08,2.182]
[1734036420592,10.06151576,229.18,229.05,29.18683655]
[1734036420792,10.06151576,229.18,229.06,55.00470226]
[1734036420995,10.06151576,229.21,229.08,5.9663787]
[1734036421297,6.43704854,229.19,229.12,6.43704854]
[1734036421590,6.43704854,229.19,229.13,2.64]
[1734036421891,6.43704854,229.22,229.14,6.43704854]
[1734036422190,2.1808,229.21,229.17,2.1811]
[1734036422890,6.43704854,229.22,229.16,6.43704854]
[1734036423192,1.411,229.28,229.15,5.9663787]
[1734036423386,2.1805,229.24,229.15,5.9663787]
[1734036423587,2.1805,229.24,229.16,4.21185674]
[1734036423787,1.411,229.28,229.15,5.9663787]
[1734036423989,2.1807,229.23,229.16,4.21199391]
[1734036424188,10.05263142,229.26,229.14,33.91814622]
[1734036424395,10.05263142,229.26,229.15,10.17912574]
[1734036424590,2.1809,229.21,229.16,2.1813]
[1734036424788,10.05263142,229.26,229.16,2.1813]
[1734036425499,10.05263142,229.26,229.17,2.1812]
[1734036425793,10.05263142,229.23,229.17,2.1812]
[1734036426694,2.1807,229.22,229.18,2.1811]
[1734036426993,5.21477663,229.3,229.19,2.56]
[1734036427193,10.05263142,229.29,229.19,2.56]
[1734036427796,2.1803,229.26,229.21,2.1808]
[1734036429086,10.05263142,229.29,229.19,2.56]
[1734036429287,10.05263142,229.26,229.19,2.56]
[1734036430591,5.10913858,229.31,229.12,8.5263787]
[1734036430592,10.05263142,229.2,229.12,8.5263787]
[1734036430790,10.05263142,229.2,229.08,23.8655148]
[1734036430988,10.05263142,229.17,229.08,5.9663787]
[1734036431196,10.05263142,229.14,229.06,23.8655148]
[1734036431392,2.1819,229.1,229.05,7.50362175]
[1734036431599,2.1819,229.1,229.05,11.28770045]
[1734036431790,10.05263142,229.14,229.05,5.32132175]
[1734036431992,2.1816,229.13,229.08,2.182]
[1734036432188,2.56,229.2,229.06,5.9663787]
[1734036432189,10.05263142,229.17,229.06,5.9663787]
[1734036432388,10.05263142,229.17,229.07,4.22321319]
[1734036432588,10.05263142,229.17,229.06,23.8655148]
[1734036432794,2.1815,229.14,229.09,2.1819]
[1734036433796,2.1816,229.13,229.09,2.1819]
[1734036435298,10.05263142,229.17,229.07,5.9663787]
[1734036435491,2.1815,229.14,229.08,4.22441115]
[1734036435691,2.1815,229.14,229.07,23.8655148]
[1734036435893,2.1815,229.14,229.08,4.22420574]
[1734036436099,2.1815,229.14,229.09,2.1819]
[1734036436299,2.1816,229.13,229.09,2.1819]
[1734036437597,10.05263142,229.14,229.07,5.9663787]
[1734036437903,10.05263142,229.14,229.05,5.9663787]
[1734036438801,10.05263142,229.14,229.06,10.19348834]
[1734036438998,10.05263142,229.14,229.05,23.8655148]
[1734036439198,10.05263142,229.14,229.06,4.22712201]
[1734036439399,10.05263142,229.14,229.05,23.8655148]
[1734036439697,10.05263142,229.14,229.08,2.182]
[1734036439896,2.6929,229.23,229.09,2.56]
[1734036440100,10.05263142,229.21,229.11,2.1817]
[1734036440296,10.05263142,229.18,229.09,2.56]
[1734036440700,2.1813,229.17,229.09,2.56]
[1734036440900,2.1813,229.17,229.09,8.5263787]
[1734036441101,10.05263142,229.21,229.1,4.22221747]
[1734036441397,2.1811,229.18,229.09,26.4255148]
[1734036441603,2.6929,229.23,229.1,10.19084436]
[1734036441803,2.1808,229.21,229.13,2.1815]
[1734036442001,11.39193142,229.24,229.1,16.01901012]
[1734036442201,11.39193142,229.24,229.13,5.9663787]
[1734036442402,2.1807,229.22,229.14,10.18905767]
[1734036442600,2.1807,229.22,229.15,6.78267897]
[1734036442906,2.1807,229.22,229.18,2.1811]
[1734036443500,2.1807,229.22,229.15,2.56]
[1734036443501,11.39193142,229.24,229.15,2.56]
[1734036443704,10.05263142,229.21,229.13,5.9663787]
[1734036444005,2.1815,229.14,229.12,2.56]
[1734036444705,2.1814,229.16,229.12,2.56]
[1734036445606,2.1814,229.15,229.12,2.56]
[1734036447800,2.1815,229.14,229.12,2.56]
[1734036449008,1.3393,229.24,229.12,2.56]
[1734036449304,1.3393,229.24,229.13,4.22301112]
[1734036449506,1.3393,229.24,229.14,44.97434308]
[1734036449714,2.1808,229.22,229.17,2.1812]
[1734036450108,2.1808,229.22,229.19,2.181]
[1734036450607,1.3393,229.24,229.15,5.9663787]
[1734036450802,2.1806,229.24,229.16,4.22293355]
[1734036451003,15.41103142,229.29,229.16,16.01901012]
[1734036451203,2.1805,229.25,229.2,2.1808]
[1734036452209,2.1805,229.25,229.19,2.56]
[1734036452210,2.1805,229.25,229.21,2.1808]
[1734036452704,1.3653,229.34,229.25,2.1804]
[1734036453009,11.41793142,229.34,229.2,1.4539]
[1734036454009,2.1802,229.28,229.23,2.1806]
[1734036454211,10.05263142,229.31,229.2,1.4539]
[1734036454509,2.1806,229.24,229.19,4.721]
[1734036454901,10.05263142,229.28,229.19,4.721]
[1734036455303,2.1807,229.23,229.19,4.721]
[1734036455903,10.05263142,229.28,229.19,2.54]
[1734036456206,2.1807,229.23,229.19,2.54]
[1734036456611,10.05263142,229.25,229.19,2.54]
[1734036457203,2.1808,229.21,229.18,2.181]
[1734036458008,10.05263142,229.25,229.17,5.16284798]
[1734036458210,2.54,229.3,229.17,5.16284798]
[1734036458814,2.54,229.3,229.16,36.45814622]
[1734036459015,10.05263142,229.31,229.21,2.1808]
[1734036459215,10.05263142,229.31,229.16,18.55901012]
[1734036459407,2.1807,229.23,229.16,18.55901012]
[1734036459714,10.05263142,229.28,229.16,2.54]
[1734036460117,2.1807,229.22,229.18,2.1811]
[1734036460411,2.1807,229.22,229.17,5.28606609]
[1734036461215,2.1806,229.23,229.19,2.181]
[1734036461420,1.3653,229.34,229.22,10.05263142]
[1734036461712,0.67320206,229.33,229.23,2.54]
[1734036462021,1.3653,229.34,229.23,2.54]
[1734036462217,1.3653,229.34,229.28,2.1801]
[1734036463623,2.1798,229.32,229.28,2.1801]
[1734036463821,1.3653,229.34,229.23,2.54]
[1734036464018,1.3653,229.34,229.28,2.1801]
[1734036464225,2.1798,229.32,229.28,2.1801]
[1734036465526,2.1799,229.31,229.26,2.1803]
[1734036466325,1.3653,229.34,229.22,10.05263142]
[1734036466526,2.18,229.3,229.25,2.1804]
[1734036466921,1.3653,229.34,229.25,2.1804]
[1734036467125,2.1799,229.31,229.23,2.54]
[1734036467322,10.05263142,229.36,229.23,3.9064]
[1734036467729,2.1798,229.32,229.27,2.1802]
[1734036467928,10.05263142,229.36,229.27,2.1802]
[1734036468131,2.1798,229.33,229.28,2.1801]
[1734036468727,10.05263142,229.36,229.28,2.1801]
[1734036469528,10.05263142,229.36,229.23,3.9064]
[1734036469832,10.05263142,229.36,229.27,2.1802]
[1734036470225,10.05263142,229.36,229.23,3.9064]
[1734036470532,10.05263142,229.36,229.25,2.1804]
[1734036471135,2.18,229.3,229.26,2.1803]
[1734036471939,66.59795,229.38,229.23,3.9064]
[1734036472231,66.59795,229.38,229.25,10.05263142]
[1734036473639,2.1797,229.33,229.29,2.18]
[1734036473833,2.1797,229.33,229.29,4.72]
[1734036474325,2.1798,229.32,229.29,4.72]
[1734036474732,10.05263142,229.36,229.23,1.3664]
[1734036474932,10.05263142,229.36,229.24,2.54]
[1734036475132,1.3224,229.35,229.24,2.54]
[1734036475333,1.3224,229.35,229.25,2.1804]
[1734036475836,1.3224,229.35,229.24,2.54]
[1734036476040,2.18,229.3,229.26,2.1803]
[1734036476635,1.3224,229.35,229.24,2.54]
[1734036477239,2.1801,229.29,229.24,4.7205]
[1734036477432,10.05263142,229.33,229.21,1.3485]
[1734036477634,10.05263142,229.33,229.25,2.54]
[1734036478334,10.05263142,229.33,229.25,4.7204]
[1734036478642,1.3224,229.35,229.25,2.54]
[1734036478836,2.18,229.3,229.26,2.1803]
[1734036479940,2.1799,229.31,229.26,2.1803]
[1734036480443,1.3224,229.35,229.26,2.1803]
[1734036480444,2.18,229.3,229.26,2.1803]
[1734036480933,2.1802,229.28,229.25,2.54]
[1734036481131,1.3224,229.35,229.25,2.54]
[1734036481536,2.1803,229.26,229.25,2.54]
[1734036482139,10.05263142,229.33,229.25,2.54]
[1734036482838,10.05263142,229.33,229.23,7.38046747]
[1734036483041,10.05263142,229.33,229.23,9.92046747]
[1734036483739,10.05263142,229.33,229.23,7.73986747]
[1734036483938,10.05263142,229.3,229.22,2.4]
[1734036484446,10.05263142,229.3,229.19,2.1809]
[1734036484743,10.05263142,229.3,229.19,4.5809]
[1734036485641,2.1806,229.24,229.19,4.5809]
[1734036486245,2.1806,229.24,229.19,2.4]
[1734036486444,2.1806,229.24,229.2,2.1809]
[1734036486638,10.05263142,229.33,229.21,5.21910418]
[1734036486842,10.05263142,229.33,229.26,2.1803]
[1734036487041,10.05263142,229.33,229.24,2.4]
[1734036487843,2.1801,229.29,229.26,2.1803]
[1734036488545,2.1801,229.29,229.25,2.1804]
[1734036489748,10.05263142,229.33,229.21,7.61910418]
[1734036490046,10.05263142,229.3,229.21,7.61910418]
[1734036491252,10.05263142,229.3,229.21,9.79990418]
[1734036492752,2.1806,229.24,229.21,9.79990418]
[1734036493347,10.05263142,229.27,229.18,2.4]
[1734036494047,2.1807,229.22,229.18,4.581]
[1734036494249,2.1807,229.22,229.19,5.35210673]
[1734036494454,10.05263142,229.3,229.19,5.35210673]
[1734036494753,2.4,229.31,229.19,15.40473815]
[1734036495150,2.1804,229.26,229.22,2.1807]
[1734036496552,2.1805,229.25,229.21,2.1808]
[1734036498449,10.05263142,229.3,229.19,5.35210673]
[1734036499248,6.43346204,229.27,229.2,6.43346204]
[1734036500151,2.1807,229.22,229.2,6.43346204]
[1734036500346,2.1807,229.22,229.19,7.53310673]
[1734036501049,2.4,229.32,229.2,6.43346204]
[1734036501253,6.43346204,229.3,229.23,6.43346204]
[1734036502055,6.43346204,229.32,229.25,6.43346204]
[1734036502453,2.1802,229.28,229.25,6.43346204]
[1734036503857,2.1802,229.28,229.24,2.1805]
[1734036504262,2.1802,229.28,229.25,2.1804]
[1734036506658,1.3224,229.35,229.27,2.1802]
[1734036506855,6.43346204,229.32,229.27,2.1802]
[1734036507550,2.18,229.3,229.27,2.1802]
[1734036508955,1.3224,229.35,229.29,6.43346204]
[1734036510565,2.1797,229.33,229.3,2.1799]
[1734036511464,6.43346204,229.34,229.28,2.4]
[1734036511655,6.43346204,229.3,229.22,5.9663787]
[1734036511861,6.43346204,229.28,229.21,8.3663787]
[1734036512160,6.43346204,229.28,229.21,2.4]
[1734036512767,2.1803,229.26,229.22,2.1807]
[1734036513155,2.1803,229.26,229.22,8.61416204]
[1734036513563,2.1805,229.25,229.22,8.61416204]
[1734036515867,2.1805,229.24,229.21,2.1808]
[1734036516864,2.1804,229.25,229.21,2.1808]
[1734036517267,2.1804,229.25,229.22,2.1807]
[1734036519572,6.43346204,229.26,229.19,5.35210673]
[1734036519872,6.43346204,229.24,229.16,14.77984074]
[1734036520172,2.1811,229.19,229.16,2.38]
[1734036520673,2.1811,229.19,229.15,2.1813]
[1734036521670,2.1809,229.2,229.16,2.1813]
[1734036521978,2.1809,229.2,229.16,7.3694419]
[1734036523078,6.43346204,229.18,229.13,5.9663787]
[1734036523271,2.38,229.19,229.12,5.9663787]
[1734036523467,6.43346204,229.17,229.11,28.99919669]
[1734036523773,1.4485,229.18,229.12,6.43346204]
[1734036524576,2.1813,229.16,229.12,8.61506204]
[1734036525774,6.43346204,229.17,229.11,5.13368189]
[1734036527281,2.1814,229.15,229.11,7.31538189]
[1734036529379,2.1816,229.13,229.11,5.13368189]
[1734036531277,6.43346204,229.17,229.11,5.13368189]
[1734036531483,2.38,229.21,229.14,6.43346204]
[1734036531680,8.81346204,229.21,229.14,6.43346204]
[1734036532081,2.1812,229.18,229.14,8.61496204]
[1734036532384,8.81346204,229.21,229.14,6.43346204]
[1734036532774,6.43346204,229.21,229.14,6.43346204]
[1734036533682,2.1813,229.17,229.14,6.43346204]
[1734036535687,2.1813,229.17,229.13,2.1816]
[1734036535886,6.43346204,229.17,229.11,5.13368189]
[1734036536185,6.43346204,229.19,229.12,6.43346204]
[1734036536380,2.1815,229.15,229.12,6.43346204]
[1734036537281,2.1815,229.14,229.12,6.43346204]
[1734036538479,2.1815,229.14,229.11,5.13368189]
[1734036540382,2.1815,229.14,229.12,6.43346204]
[1734036540687,2.1815,229.14,229.11,7.31538189]
[1734036541077,2.1815,229.14,229.11,5.13368189]
[1734036543084,4.359,229.35,229.13,6.43346204]
[1734036543383,6.43346204,229.33,229.25,6.43346204]
[1734036543583,2.1807,229.23,229.21,2.38]
[1734036543778,2.1807,229.23,229.2,2.38]
[1734036544387,6.43346204,229.27,229.19,6.43346204]
[1734036544590,6.43346204,229.23,229.13,23.8655148]
[1734036544783,6.43346204,229.21,229.14,8.81346204]
[1734036544988,6.43346204,229.19,229.11,5.13368189]
[1734036545187,6.43346204,229.17,229.11,7.51368189]
[1734036546690,2.1815,229.15,229.11,7.51368189]
[1734036546884,6.43346204,229.19,229.11,13.94714393]
[1734036547079,2.38,229.22,229.13,6.43346204]
[1734036547285,2.1811,229.18,229.13,6.43346204]
[1734036547783,6.43346204,229.19,229.11,13.48006059]
[1734036547988,6.43346204,229.19,229.11,19.91352263]
[1734036548185,6.43346204,229.17,229.11,13.48006059]
[1734036548389,6.43346204,229.17,229.11,7.51368189]
[1734036548589,6.43346204,229.17,229.11,2.38]
[1734036549292,2.1816,229.14,229.11,2.38]
[1734036550387,6.43346204,229.17,229.11,2.38]
[1734036551992,2.1815,229.14,229.11,2.38]
[1734036552291,6.43346204,229.15,229.09,5.9663787]
[1734036552587,2.182,229.09,229.08,5.9663787]
[1734036552792,2.182,229.09,229.07,5.9663787]
[1734036553093,2.182,229.09,229.08,4.23600174]
[1734036553294,2.182,229.09,229.07,5.9663787]
[1734036554286,2.1819,229.1,229.08,4.23602735]
[1734036554491,2.1819,229.1,229.07,5.9663787]
[1734036554694,2.1819,229.1,229.08,4.23520378]
[1734036554894,2.1819,229.1,229.07,5.9663787]
[1734036555098,2.182,229.09,229.08,4.23532115]
[1734036555595,6.43346204,229.09,229.04,71.59654441]
[1734036555797,6.43346204,229.07,229.03,5.9663787]
[1734036556089,6.43346204,229.07,229.01,23.8655148]
[1734036556297,6.43346204,229.05,229.02,4.23835712]
[1734036556487,6.43346204,229.05,228.98,80.41000646]
[1734036556488,6.43346204,229.05,228.99,5.9663787]
[1734036556689,6.43346204,229.05,229.0,6.43346204]
[1734036556890,6.43346204,229.07,229.0,6.43346204]
[1734036557095,6.43346204,229.07,229.0,12.39984074]
[1734036557495,6.43346204,229.07,229.0,6.43346204]
[1734036557693,6.43346204,229.07,229.01,4.23324962]
[1734036557896,6.43346204,229.07,229.0,30.29897684]
[1734036558098,6.43346204,229.07,229.01,4.23329771]
[1734036558292,6.43346204,229.05,228.98,2.38]
[1734036558598,2.38,229.12,229.01,6.43346204]
[1734036558599,6.43346204,229.07,229.01,6.43346204]
[1734036558795,2.1825,229.04,229.01,6.43346204]
[1734036559202,2.1826,229.03,229.01,6.43346204]
[1734036559404,6.43346204,229.05,228.99,6.43346204]
[1734036559799,2.1826,229.02,228.99,6.43346204]
[1734036560001,6.43346204,229.07,228.99,6.43346204]
[1734036560797,6.43346204,229.03,228.97,23.8655148]
[1734036561003,6.43346204,229.01,228.93,12.39984074]
[1734036561397,2.1831,228.98,228.94,5.34967905]
[1734036561699,6.43346204,229.01,228.94,5.34967905]
[1734036562101,2.1831,228.97,228.94,5.34967905]
[1734036562494,6.43346204,228.99,228.93,6.43346204]
[1734036563305,8.81346204,229.03,228.95,6.43346204]
[1734036563600,6.43346204,229.01,228.93,6.43346204]
[1734036563801,2.1832,228.97,228.93,6.43346204]
[1734036564403,2.183,228.98,228.93,6.43346204]
[1734036564603,2.38,229.03,228.95,6.43346204]
[1734036564807,6.43346204,229.03,228.97,6.43346204]
[1734036565209,1.3575,229.04,228.97,6.43346204]
[1734036565404,1.3575,229.04,228.99,6.43346204]
[1734036565607,6.43346204,229.09,229.01,6.43346204]
[1734036565816,6.43346204,229.09,229.03,6.43346204]
[1734036566001,6.43346204,229.11,229.03,6.43346204]
[1734036566411,2.1822,229.07,229.03,8.61596204]
[1734036566613,6.43346204,229.11,229.03,8.61596204]
[1734036566812,6.43346204,229.11,229.03,6.43346204]
[1734036567113,6.43346204,229.09,228.99,2.38]
[1734036567509,2.1823,229.06,229.02,6.43346204]
[1734036567813,6.43346204,229.07,229.0,6.43346204]
[1734036568109,6.43346204,229.05,228.99,8.81346204]
[1734036568310,6.43346204,229.05,228.99,6.43346204]
[1734036568507,2.1828,229.0,228.97,6.43346204]
[1734036568904,6.43346204,229.05,228.99,6.43346204]
[1734036569216,7.88476204,229.07,229.01,6.43346204]
[1734036569809,2.1823,229.06,229.01,6.43346204]
[1734036570008,6.43346204,229.1,229.03,6.43346204]
[1734036570412,2.1821,229.08,229.03,6.43346204]
[1734036570720,6.43346204,229.08,229.01,6.43346204]
[1734036570910,2.1822,229.07,229.03,2.1825]
[1734036571114,6.43346204,229.08,229.01,6.43346204]
[1734036571310,6.43346204,229.06,229.0,2.38]
[1734036571812,2.1824,229.04,229.0,4.5627]
[1734036572315,2.1824,229.04,229.0,2.38]
[1734036572514,2.1823,229.06,229.02,2.1826]
[1734036572718,6.43346204,229.08,229.01,6.43346204]
[1734036573819,2.1824,229.05,229.01,8.61616204]
[1734036574319,2.1824,229.05,229.01,6.43346204]
[1734036574521,2.1824,229.05,229.02,2.1826]
[1734036576320,6.43346204,229.08,229.01,6.43346204]
[1734036576520,8.61556204,229.08,229.04,2.1824]
[1734036577721,2.1822,229.07,229.04,2.1824]
[1734036578218,6.43346204,229.1,229.04,2.1824]
[1734036578423,2.1821,229.08,229.04,2.1824]
[1734036581324,1.3762,229.17,229.07,6.43346204]
[1734036581325,6.43346204,229.16,229.07,6.43346204]
[1734036581627,6.43346204,229.16,229.1,6.43346204]
[1734036581929,2.1816,229.14,229.1,8.61536204]
[1734036582126,6.43346204,229.16,229.1,6.43346204]
[1734036582426,2.1815,229.15,229.11,2.1818]
[1734036582626,6.43346204,229.18,229.11,2.1818]
[1734036583827,2.1815,229.14,229.11,2.1818]
[1734036584125,6.43346204,229.18,229.11,2.1818]
[1734036584320,2.1814,229.15,229.11,2.1818]
[1734036584729,6.43346204,229.18,229.1,8.81346204]
[1734036584926,1.4423,229.23,229.12,6.43346204]
[1734036585127,6.43346204,229.21,229.14,6.43346204]
[1734036585428,6.43346204,229.21,229.15,2.38]
[1734036585727,2.181,229.2,229.15,4.5613]
[1734036585918,6.43346204,229.21,229.15,4.5613]
[1734036586830,2.1811,229.18,229.15,2.38]
[1734036587327,6.43346204,229.21,229.15,2.38]
[1734036587624,6.43346204,229.17,229.11,2.38]
[1734036588035,2.1816,229.13,229.11,2.38]
[1734036588332,6.43346204,229.13,229.07,2.38]
[1734036588522,2.1822,229.07,229.04,14.58224074]
[1734036588724,2.1822,229.07,229.04,2.38]
[1734036588725,6.43346204,229.07,229.04,2.38]
[1734036591128,6.43346204,229.07,228.97,23.8655148]
[1734036591129,12.4479862,229.11,228.97,33.933501]
[1734036591331,12.4479862,229.11,228.98,2.38]
[1734036591831,12.4479862,229.11,229.0,5.25890402]
[1734036592228,12.4479862,229.11,228.98,2.38]
[1734036592427,10.0679862,229.07,228.98,2.38]
[1734036593026,5.11010172,229.13,228.99,5.29558065]
[1734036593228,13.8354862,229.14,229.04,2.1824]
[1734036593630,11.4554862,229.14,229.03,2.38]
[1734036593831,2.182,229.1,229.06,2.1822]
[1734036594031,11.4554862,229.14,229.03,2.38]
[1734036594333,2.38,229.16,229.08,2.182]
[1734036594334,2.1817,229.12,229.08,2.182]
[1734036595636,2.38,229.16,229.04,11.4827862]
[1734036596031,2.38,229.16,229.04,17.4491649]
[1734036596231,2.38,229.16,229.04,11.4827862]
[1734036596533,10.0679862,229.17,229.04,11.4827862]
[1734036597037,10.0679862,229.17,229.04,17.4491649]
[1734036597230,2.38,229.2,229.07,10.0679862]
[1734036597231,10.0679862,229.2,229.07,10.0679862]
[1734036597534,10.0679862,229.2,229.08,2.38]
[1734036597737,10.0679862,229.2,229.1,2.1818]
[1734036598728,2.1815,229.14,229.1,2.1818]
[1734036600335,4.1928,229.23,229.1,10.0679862]
[1734036600531,1.4026,229.23,229.1,10.0679862]
[1734036601035,2.181,229.2,229.1,16.0343649]
[1734036601230,2.181,229.2,229.11,4.22403311]
[1734036601537,2.181,229.2,229.15,2.1814]
[1734036601736,2.1811,229.18,229.15,2.38]
[1734036601937,11.4705862,229.23,229.15,2.38]
[1734036602132,2.1809,229.21,229.11,2.1817]
[1734036602339,11.4705862,229.23,229.11,2.38]
[1734036602632,2.1812,229.18,229.11,2.38]
[1734036602930,2.1812,229.18,229.09,2.1819]
[1734036602931,10.0679862,229.2,229.07,5.9663787]
[1734036603233,2.1817,229.12,229.08,2.38]
[1734036603439,2.8472,229.19,229.08,2.38]
[1734036603736,1.4026,229.23,229.1,10.0679862]
[1734036604340,2.181,229.19,229.14,2.1814]
[1734036604534,1.4026,229.23,229.14,2.38]
[1734036605138,2.1814,229.16,229.14,2.38]
[1734036606239,10.0679862,229.21,229.09,2.38]
[1734036606534,12.4479862,229.21,229.09,2.38]
[1734036606838,2.1816,229.13,229.09,2.38]
[1734036608337,12.4479862,229.21,229.09,2.38]
[1734036608338,2.1815,229.15,229.09,2.38]
[1734036608538,2.38,229.21,229.09,2.38]
[1734036609239,2.1814,229.16,229.11,2.1817]
[1734036609436,1.4026,229.23,229.1,10.0679862]
[1734036610035,1.4026,229.23,229.11,1.3593]
[1734036610341,1.4026,229.23,229.13,10.0679862]
[1734036610543,1.4026,229.23,229.14,2.38]
[1734036610744,1.4026,229.23,229.11,1.3593]
[1734036610940,10.0679862,229.21,229.12,2.38]
[1734036613141,2.1813,229.16,229.12,4.5617]
[1734036613647,2.38,229.22,229.12,2.38]
[1734036613850,2.1811,229.18,229.13,2.1816]
[1734036615039,5.29292014,229.27,229.13,2.1816]
[1734036615240,0.67354495,229.26,229.15,2.1813]
[1734036615444,0.67354495,229.26,229.12,12.4479862]
[1734036615747,10.0679862,229.24,229.13,2.1816]
[1734036615947,10.0679862,229.24,229.12,2.38]
[1734036616146,1.3709,229.23,229.12,2.38]
[1734036616347,1.3709,229.23,229.12,12.4479862]
[1734036617348,2.1811,229.18,229.12,12.4479862]
[1734036618143,2.1811,229.18,229.14,2.1814]
[1734036619847,2.1811,229.18,229.15,2.1814]
[1734036620249,1.3709,229.23,229.12,17.68079837]
[1734036620455,1.3709,229.23,229.15,2.1813]
[1734036620745,2.1811,229.18,229.15,2.1813]
[1734036621150,2.1811,229.18,229.16,6.43474285]
[1734036621351,2.1811,229.18,229.17,2.38]
[1734036622350,2.181,229.19,229.17,2.38]
[1734036622552,6.43474285,229.22,229.17,2.38]
[1734036622755,6.43474285,229.18,229.12,6.43474285]
[1734036623051,2.1817,229.13,229.12,2.38]
[1734036623549,2.1818,229.11,229.1,2.38]
[1734036625051,6.43474285,229.12,229.06,5.9663787]
[1734036625250,10.06529064,229.14,229.06,2.38]
[1734036625552,1.371,229.13,229.06,2.38]
[1734036626352,2.1821,229.08,229.06,2.38]
[1734036627453,1.371,229.13,229.02,5.9663787]
[1734036627752,10.06529064,229.08,229.01,8.3463787]
[1734036627952,10.06529064,229.08,229.0,5.9663787]
[1734036628152,10.06529064,229.08,228.99,5.9663787]
[1734036628354,10.06529064,229.08,228.96,23.8655148]
[1734036628656,2.183,228.99,228.97,2.38]
[1734036629149,10.06529064,229.08,228.97,2.38]
[1734036629654,2.1827,229.01,228.97,2.38]
[1734036630549,2.1828,229.0,228.97,2.38]
[1734036630749,10.06529064,229.08,228.97,2.38]
[1734036631748,10.06529064,229.11,228.97,12.44529064]
[1734036631946,10.06529064,229.11,228.98,4.22465185]
[1734036632145,10.06529064,229.11,228.97,36.31080544]
[1734036632354,2.1822,229.07,229.03,2.1825]
[1734036632555,2.1822,229.07,229.04,2.38]
[1734036633256,2.182,229.09,229.04,2.38]
[1734036633455,2.7977,229.13,229.04,2.38]
[1734036633654,1.371,229.13,229.04,2.38]
[1734036633853,2.38,229.19,229.04,2.38]
[1734036634056,3.8288,229.19,229.04,2.38]
[1734036634458,3.8288,229.19,229.08,2.182]
[1734036634656,3.8288,229.19,229.09,2.38]
[1734036635657,2.1816,229.13,229.09,2.38]
[1734036636655,2.1815,229.15,229.1,2.1818]
[1734036637160,2.1813,229.16,229.09,12.44529064]
[1734036637661,2.1813,229.16,229.09,2.38]
[1734036637957,2.1814,229.15,229.11,2.1818]
[1734036638557,2.1813,229.16,229.09,2.38]
[1734036638955,2.1813,229.16,229.13,2.1816]
[1734036639260,1.4488,229.19,229.13,2.1816]
[1734036639656,1.4488,229.19,229.14,2.38]
[1734036639959,10.06529064,229.23,229.14,2.38]
[1734036641150,2.181,229.19,229.14,2.38]
[1734036641656,10.06529064,229.23,229.14,2.38]
[1734036641857,2.1811,229.18,229.14,2.38]
[1734036642761,2.1811,229.18,229.14,4.5614]
[1734036642957,2.1811,229.18,229.14,2.1814]
[1734036643163,10.06529064,229.2,229.09,5.17984135]
[1734036643357,10.06529064,229.2,229.1,2.38]
[1734036644160,10.06529064,229.2,229.06,7.3286787]
[1734036644367,10.06529064,229.2,229.09,2.38]
[1734036646364,10.06529064,229.2,229.11,2.1817]
[1734036646960,2.1812,229.18,229.11,2.1817]
[1734036647156,10.06529064,229.2,229.11,2.1817]
[1734036647359,10.06529064,229.2,229.12,2.38]
[1734036647557,2.1815,229.14,229.12,2.38]
[1734036648663,10.06529064,229.2,229.12,2.38]
[1734036648862,2.1816,229.13,229.12,2.38]
[1734036650068,2.1815,229.14,229.12,2.38]
[1734036650268,10.06529064,229.23,229.12,2.38]
[1734036651569,2.1813,229.17,229.13,2.1816]
[1734036652270,2.1814,229.16,229.12,2.38]